fUST/lending_fUST_20251129
["ID","MTS","AMOUNT","RATE_DAILY","PERIOD"]
[395069486,1764397876292,-1897.31,0.00016438,2]
[395069487,1764397876302,-990.53,0.00016438,2]
[395069488,1764397876315,-500.0,0.00016438,2]
[395069489,1764397876324,-500.0,0.00016438,2]
[395069490,1764397876334,-778.35,0.00016438,2]
[395069491,1764397876343,-1618.79,0.00016438,2]
[395069492,1764397876357,-592.68,0.00016438,2]
[395069493,1764397876368,-899.31,0.00016438,2]
[395069494,1764397876377,-940.19,0.00016438,2]
[395069495,1764397876387,-500.0,0.00016438,2]
[395069496,1764397876396,-500.0,0.00016438,2]
[395069497,1764397876406,-1484.2,0.00016438,2]
[395069498,1764397876415,-500.0,0.00016438,2]
[395069499,1764397876425,-596.04,0.00016438,2]
[395069500,1764397876434,-2800.32,0.00016438,2]
[395069501,1764397876443,-500.0,0.00016438,2]
[395069502,1764397876453,-645.88773389,0.00016438,2]
[395069503,1764397876462,-500.0,0.00016438,2]
[395069504,1764397876472,-500.0,0.00016438,2]
[395069505,1764397876482,-500.0,0.00016438,2]
[395069506,1764397876491,-500.0,0.00016438,2]
[395069507,1764397876501,-500.0,0.00016438,2]
[395069508,1764397876510,-552.21,0.00016438,2]
[395069509,1764397876520,-500.0,0.00016438,2]
[395069510,1764397876530,-1559.52,0.00016438,2]
[395069511,1764397876540,-522.61,0.00016438,2]
[395069512,1764397876549,-797.75,0.00016438,2]
[395069513,1764397876559,-513.48,0.00016438,2]
[395069514,1764397876569,-526.07,0.00016438,2]
[395069515,1764397876579,-500.0,0.00016438,2]
[395069516,1764397876588,-500.0,0.00016438,2]
[395069517,1764397876598,-1335.25,0.00016438,2]
[395069518,1764397876608,-50000.0,0.00016438,2]
[395069519,1764397876617,-1099.74,0.00016438,2]
[395069520,1764397876627,-3619.92,0.00016438,2]
[395069521,1764397876646,-500.0,0.00016438,2]
[395069522,1764397876656,-2405.03,0.00016438,2]
[395069523,1764397876666,-500.0,0.00016438,2]
[395069524,1764397876676,-7651.96,0.00016438,2]
[395069525,1764397876689,-500.0,0.00016438,2]
[395069526,1764397876698,-500.0,0.00016438,2]
[395069527,1764397876708,-500.0,0.00016438,2]
[395069528,1764397876717,-649.66,0.00016438,2]
[395069529,1764397876727,-1908.06,0.00016438,2]
[395069530,1764397876736,-500.0,0.00016438,2]
[395069531,1764397876746,-662.97,0.00016438,2]
[395069532,1764397876755,-1158.74,0.00016438,2]
[395069533,1764397876764,-500.0,0.00016438,2]
[395069534,1764397876776,-1514.35,0.00016438,2]
[395069535,1764397876785,-642.19,0.00016438,2]
[395069536,1764397876795,-500.0,0.00016438,2]
[395069537,1764397876805,-500.0,0.00016438,2]
[395069538,1764397876815,-3678.73,0.00016438,2]
[395069539,1764397876824,-6008.98,0.00016438,2]
[395069540,1764397876834,-514.33,0.00016438,2]
[395069541,1764397876843,-776.58,0.00016438,2]
[395069542,1764397876852,-523.64233508,0.00016438,2]
[395069543,1764397876862,-500.0,0.00016438,2]
[395069544,1764397876871,-3777.58,0.00016438,2]
[395069545,1764397876880,-980.94,0.00016438,2]
[395069546,1764397876889,-500.0,0.00016438,2]
[395069547,1764397876899,-907.07,0.00016438,2]
[395069548,1764397876909,-500.0,0.00016438,2]
[395069549,1764397876918,-500.0,0.00016438,2]
[395069550,1764397876927,-1083.76,0.00016438,2]
[395069551,1764397876936,-604.62,0.00016438,2]
[395069552,1764397876946,-500.0,0.00016438,2]
[395069553,1764397876956,-1104.96,0.00016438,2]
[395069554,1764397876965,-500.0,0.00016438,2]
[395069555,1764397876974,-6559.69,0.00016438,2]
[395069556,1764397876984,-939.05,0.00016438,2]
[395069557,1764397876993,-1377.4,0.00016438,2]
[395069558,1764397877003,-4642.22,0.00016438,2]
[395069559,1764397877012,-704.271,0.00016438,10]
[395069560,1764397877022,-200.0,0.00016438,3]
[395069561,1764397877031,-200.0,0.00016438,3]
[395069562,1764397877040,-200.0,0.00016438,3]
[395069563,1764397877050,-200.0,0.00016438,3]
[395069564,1764397877059,-200.0,0.00016438,3]
[395069565,1764397877068,-200.0,0.00016438,3]
[395069566,1764397877078,-155.262135,0.00016438,2]
[395069567,1764397877087,-154.20637994,0.00016438,2]
[395069568,1764397877096,-3000.0,0.00016438,2]
[395069569,1764397877106,-3000.0,0.00016438,2]
[395069570,1764397877116,-3000.0,0.00016438,2]
[395069571,1764397877126,-414.0,0.00016471,2]
[395069572,1764397877135,-150.0,0.00016494,2]
[395069573,1764397877145,-3500.0,0.0001656,2]
[395069574,1764397877155,-3500.0,0.0001656,2]
[395069575,1764397877164,-251.11897888,0.00016576,2]
[395069576,1764397877173,-666.0,0.00016576,2]
[395069577,1764397877183,-600.0,0.00016607,2]
[395069578,1764397877192,-368.72313193,0.00016637,13]
[395069579,1764397877201,-500.0,0.00016694,2]
[395069580,1764397877211,-150.0,0.00016702,2]
[395069581,1764397877220,-150.0,0.00016702,2]
[395069582,1764397877230,-150.0,0.00016702,2]
[395069583,1764397877242,-500.0,0.00016712,2]
[395069584,1764397877251,-500.0,0.00016712,2]
[395069585,1764397877261,-460.69821115,0.00016712,2]
[395069586,1764397877271,-500.0,0.00016712,2]
[395069587,1764397877280,-766.13,0.00016712,2]
[395069588,1764397877289,-556.64,0.00016712,2]
[395069589,1764397877299,-834.94,0.00016712,2]
[395069590,1764397877312,-500.0,0.00016712,2]
[395069591,1764397877321,-500.0,0.00016712,2]
[395069592,1764397877331,-823.76,0.00016712,2]
[395069593,1764397877340,-500.0,0.00016712,2]
[395069594,1764397877350,-598.61,0.00016712,2]
[395069595,1764397877359,-500.0,0.00016712,2]
[395069596,1764397877369,-903.4,0.00016712,2]
[395069597,1764397877378,-500.0,0.00016712,2]
[395069598,1764397877388,-500.0,0.00016712,2]
[395069599,1764397877399,-500.0,0.00016712,2]
[395069600,1764397877409,-500.0,0.00016712,2]
[395069601,1764397877419,-745.8,0.00016712,2]
[395069602,1764397877429,-500.0,0.00016712,2]
[395069603,1764397877439,-438.07439051,0.00016712,2]
[395069604,1764397877448,-500.0,0.00016712,2]
[395069605,1764397877457,-500.0,0.00016712,2]
[395069606,1764397877467,-500.0,0.00016712,2]
[395069607,1764397877477,-587.4,0.00016712,2]
[395069608,1764397877488,-738.75,0.00016712,2]
[395069609,1764397877498,-631.96461902,0.00016712,2]
[395069610,1764397877507,-500.0,0.00016712,2]
[395069611,1764397877517,-596.16,0.00016712,2]
[395069612,1764397877527,-500.0,0.00016712,2]
[395069613,1764397877537,-574.22,0.00016712,2]
[395069614,1764397877548,-581.68,0.00016712,2]
[395069615,1764397877557,-500.0,0.00016712,2]
[395069616,1764397877567,-500.0,0.00016712,2]
[395069617,1764397877577,-556.95,0.00016712,2]
[395069618,1764397877586,-564.08,0.00016712,2]
[395069619,1764397877595,-540.78,0.00016712,2]
[395069620,1764397877613,-500.0,0.00016712,2]
[395069621,1764397877627,-689.25,0.00016712,2]
[395069622,1764397877637,-500.0,0.00016712,2]
[395069623,1764397877646,-848.59,0.00016712,2]
[395069624,1764397877656,-1164.8,0.00016712,2]
[395069625,1764397877666,-500.0,0.00016712,2]
[395069626,1764397877675,-500.0,0.00016712,2]
[395069627,1764397877685,-1236.56,0.00016712,2]
[395069628,1764397877695,-500.0,0.00016712,2]
[395069629,1764397877704,-3090.35,0.00016712,2]
[395069630,1764397877714,-529.77,0.00016712,2]
[395069631,1764397877724,-5933.31,0.00016712,2]
[395069632,1764397877733,-1214.71,0.00016712,2]
[395069633,1764397877743,-500.0,0.00016712,2]
[395069634,1764397877753,-652.25,0.00016712,2]
[395069635,1764397877763,-1897.31,0.00016712,2]
[395069636,1764397877773,-990.53,0.00016712,2]
[395069637,1764397877784,-260.92,0.00016712,2]
[395069638,1764397877793,-500.0,0.00016712,2]
[395069639,1764397877803,-778.35,0.00016712,2]
[395069640,1764397877812,-1618.79,0.00016712,2]
[395069641,1764397877822,-592.68,0.00016712,2]
[395069642,1764397877832,-899.31,0.00016712,2]
[395069643,1764397877842,-940.19,0.00016712,2]
[395069644,1764397877851,-500.0,0.00016712,2]
[395069645,1764397877861,-500.0,0.00016712,2]
[395069646,1764397877871,-1484.2,0.00016712,2]
[395069647,1764397878055,-500.0,0.00016712,2]
[395069648,1764397878066,-596.04,0.00016712,2]
[395069649,1764397878075,-2800.32,0.00016712,2]
[395069650,1764397878085,-500.0,0.00016712,2]
[395069651,1764397878094,-295.90420194,0.00016712,2]
[395069652,1764397878103,-500.0,0.00016712,2]
[395069653,1764397878113,-500.0,0.00016712,2]
[395069654,1764397878122,-500.0,0.00016712,2]
[395069655,1764397878132,-552.21,0.00016712,2]
[395069656,1764397878141,-500.0,0.00016712,2]
[395069657,1764397878150,-1559.52,0.00016712,2]
[395069658,1764397878159,-522.61,0.00016712,2]
[395069659,1764397878169,-797.75,0.00016712,2]
[395069660,1764397878178,-513.48,0.00016712,2]
[395069661,1764397878187,-526.07,0.00016712,2]
[395069662,1764397878196,-500.0,0.00016712,2]
[395069663,1764397878205,-500.0,0.00016712,2]
[395069664,1764397878214,-1335.25,0.00016712,2]
[395069665,1764397878224,-1099.74,0.00016712,2]
[395069666,1764397878237,-3619.92,0.00016712,2]
[395069667,1764397878246,-500.0,0.00016712,2]
[395069668,1764397878254,-2405.03,0.00016712,2]
[395069669,1764397878264,-500.0,0.00016712,2]
[395069670,1764397878274,-7651.96,0.00016712,2]
[395069671,1764397878283,-500.0,0.00016712,2]
[395069672,1764397878292,-188.64107987,0.00016712,2]
[395069673,1764397878301,-500.0,0.00016712,2]
[395069674,1764397878311,-649.66,0.00016712,2]
[395069675,1764397878321,-1908.06,0.00016712,2]
[395069676,1764397878330,-500.0,0.00016712,2]
[395069677,1764397878339,-662.97,0.00016712,2]
[395069678,1764397878348,-1158.74,0.00016712,2]
[395069679,1764397878357,-500.0,0.00016712,2]
[395069680,1764397878367,-1514.35,0.00016712,2]
[395069681,1764397878376,-642.19,0.00016712,2]
[395069682,1764397878385,-500.0,0.00016712,2]
[395069683,1764397878395,-3678.73,0.00016712,2]
[395069684,1764397878404,-477.20195336,0.00016712,2]
[395069685,1764397878413,-6008.98,0.00016712,2]
[395069686,1764397878422,-514.33,0.00016712,2]
[395069687,1764397878434,-776.58,0.00016712,2]
[395069688,1764397878443,-500.0,0.00016712,2]
[395069689,1764397878452,-3777.58,0.00016712,2]
[395069690,1764397878461,-980.94,0.00016712,2]
[395069691,1764397878470,-500.0,0.00016712,2]
[395069692,1764397878479,-500.0,0.00016712,2]
[395069693,1764397878488,-907.07,0.00016712,2]
[395069694,1764397878498,-500.0,0.00016712,2]
[395069695,1764397878508,-1083.76,0.00016712,2]
[395069696,1764397878517,-604.62,0.00016712,2]
[395069697,1764397878526,-500.0,0.00016712,2]
[395069698,1764397878536,-1104.96,0.00016712,2]
[395069699,1764397878545,-500.0,0.00016712,2]
[395069700,1764397878555,-6559.69,0.00016712,2]
[395069701,1764397878564,-939.05,0.00016712,2]
[395069702,1764397878573,-1377.4,0.00016712,2]
[395069703,1764397878582,-4642.22,0.00016712,2]
[395069704,1764397878591,-560.0,0.00016744,2]
[395069705,1764397878600,-600.0,0.00016798,2]
[395069706,1764397878610,-224.34093834,0.00016802,2]
[395069707,1764397878619,-153.0,0.00016842,2]
[395069708,1764397878629,-153.0,0.00016842,2]
[395069709,1764397878638,-153.0,0.00016842,2]
[395069710,1764397878647,-153.0,0.00016842,2]
[395069711,1764397878657,-153.0,0.00016842,2]
[395069712,1764397878666,-279.0,0.00016929,2]
[395069713,1764397878676,-2100.0,0.0001696,2]
[395069714,1764397878686,-500.0,0.00016986,2]
[395069715,1764397878697,-500.0,0.00016986,2]
[395069716,1764397878706,-500.0,0.00016986,2]
[395069717,1764397878715,-766.13,0.00016986,2]
[395069718,1764397878725,-556.64,0.00016986,2]
[395069719,1764397878735,-834.94,0.00016986,2]
[395069720,1764397878745,-500.0,0.00016986,2]
[395069721,1764397878754,-500.0,0.00016986,2]
[395069722,1764397878763,-823.76,0.00016986,2]
[395069723,1764397878772,-500.0,0.00016986,2]
[395069724,1764397878782,-598.61,0.00016986,2]
[395069725,1764397878791,-500.0,0.00016986,2]
[395069726,1764397878802,-903.4,0.00016986,2]
[395069727,1764397878812,-500.0,0.00016986,2]
[395069728,1764397878821,-500.0,0.00016986,2]
[395069729,1764397878831,-500.0,0.00016986,2]
[395069730,1764397878840,-500.0,0.00016986,2]
[395069731,1764397878849,-745.8,0.00016986,2]
[395069732,1764397878859,-500.0,0.00016986,2]
[395069733,1764397878869,-500.0,0.00016986,2]
[395069734,1764397878879,-500.0,0.00016986,2]
[395069735,1764397878888,-500.0,0.00016986,2]
[395069736,1764397878897,-500.0,0.00016986,2]
[395069737,1764397878906,-587.4,0.00016986,2]
[395069738,1764397878915,-738.75,0.00016986,2]
[395069739,1764397878924,-500.0,0.00016986,2]
[395069740,1764397878933,-596.16,0.00016986,2]
[395069741,1764397878942,-500.0,0.00016986,2]
[395069742,1764397878951,-574.22,0.00016986,2]
[395069743,1764397878960,-581.68,0.00016986,2]
[395069744,1764397878969,-500.0,0.00016986,2]
[395069745,1764397878978,-500.0,0.00016986,2]
[395069746,1764397878987,-556.95,0.00016986,2]
[395069747,1764397878996,-564.08,0.00016986,2]
[395069748,1764397879005,-540.78,0.00016986,2]
[395069749,1764397879014,-500.0,0.00016986,2]
[395069750,1764397879024,-689.25,0.00016986,2]
[395069751,1764397879033,-500.0,0.00016986,2]
[395069752,1764397879043,-848.59,0.00016986,2]
[395069753,1764397879053,-1164.8,0.00016986,2]
[395069754,1764397879063,-413.48485757,0.00016986,2]
[395069755,1764397879072,-354.33591041,0.00016986,2]
[395069756,1764397879081,-1236.56,0.00016986,2]
[395069757,1764397879091,-500.0,0.00016986,2]
[395069758,1764397879100,-3090.35,0.00016986,2]
[395069759,1764397879110,-529.77,0.00016986,2]
[395069760,1764397879119,-5933.31,0.00016986,2]
[395069761,1764397879129,-1214.71,0.00016986,2]
[395069762,1764397879138,-500.0,0.00016986,2]
[395069763,1764397879148,-652.25,0.00016986,2]
[395069764,1764397879157,-1897.31,0.00016986,2]
[395069765,1764397879166,-990.53,0.00016986,2]
[395069766,1764397879175,-500.0,0.00016986,2]
[395069767,1764397879184,-778.35,0.00016986,2]
[395069768,1764397879193,-1618.79,0.00016986,2]
[395069769,1764397879203,-592.68,0.00016986,2]
[395069770,1764397879212,-899.31,0.00016986,2]
[395069771,1764397879221,-940.19,0.00016986,2]
[395069772,1764397879232,-500.0,0.00016986,2]
[395069773,1764397879242,-500.0,0.00016986,2]
[395069774,1764397879251,-1484.2,0.00016986,2]
[395069775,1764397879261,-500.0,0.00016986,2]
[395069776,1764397879271,-596.04,0.00016986,2]
[395069777,1764397879280,-2800.32,0.00016986,2]
[395069778,1764397879290,-500.0,0.00016986,2]
[395069779,1764397879299,-500.0,0.00016986,2]
[395069780,1764397879309,-500.0,0.00016986,2]
[395069781,1764397879318,-500.0,0.00016986,2]
[395069782,1764397879327,-552.21,0.00016986,2]
[395069783,1764397879337,-500.0,0.00016986,2]
[395069784,1764397879346,-1559.52,0.00016986,2]
[395069785,1764397879356,-522.61,0.00016986,2]
[395069786,1764397879365,-797.75,0.00016986,2]
[395069787,1764397879374,-513.48,0.00016986,2]
[395069788,1764397879383,-526.07,0.00016986,2]
[395069789,1764397879392,-500.0,0.00016986,2]
[395069790,1764397879402,-500.0,0.00016986,2]
[395069791,1764397879411,-1335.25,0.00016986,2]
[395069792,1764397879420,-1099.74,0.00016986,2]
[395069793,1764397879431,-3619.92,0.00016986,2]
[395069794,1764397879440,-500.0,0.00016986,2]
[395069795,1764397879450,-2405.03,0.00016986,2]
[395069796,1764397879459,-500.0,0.00016986,2]
[395069797,1764397879468,-7651.96,0.00016986,2]
[395069798,1764397879479,-500.0,0.00016986,2]
[395069799,1764397879488,-401.89904734,0.00016986,2]
[395069800,1764397879497,-649.66,0.00016986,2]
[395069801,1764397879507,-1908.06,0.00016986,2]
[395069802,1764397879516,-500.0,0.00016986,2]
[395069803,1764397879524,-662.97,0.00016986,2]
[395069804,1764397879534,-1158.74,0.00016986,2]
[395069805,1764397879543,-500.0,0.00016986,2]
[395069806,1764397879552,-1514.35,0.00016986,2]
[395069807,1764397879561,-642.19,0.00016986,2]
[395069808,1764397879571,-500.0,0.00016986,2]
[395069809,1764397879581,-3678.73,0.00016986,2]
[395069810,1764397879591,-6008.98,0.00016986,2]
[395069811,1764397879601,-514.33,0.00016986,2]
[395069812,1764397879611,-776.58,0.00016986,2]
[395069813,1764397879620,-500.0,0.00016986,2]
[395069814,1764397879629,-3777.58,0.00016986,2]
[395069815,1764397879639,-980.94,0.00016986,2]
[395069816,1764397879648,-500.0,0.00016986,2]
[395069817,1764397879658,-500.0,0.00016986,2]
[395069818,1764397879667,-907.07,0.00016986,2]
[395069819,1764397879676,-500.0,0.00016986,2]
[395069820,1764397879685,-1083.76,0.00016986,2]
[395069821,1764397879695,-604.62,0.00016986,2]
[395069822,1764397879704,-500.0,0.00016986,2]
[395069823,1764397879713,-1104.96,0.00016986,2]
[395069824,1764397879723,-500.0,0.00016986,2]
[395069825,1764397879732,-6559.69,0.00016986,2]
[395069826,1764397879741,-939.05,0.00016986,2]
[395069827,1764397879750,-1377.4,0.00016986,2]
[395069828,1764397879759,-4642.22,0.00016986,2]
[395069829,1764397879768,-3500.0,0.00016986,2]
[395069830,1764397879778,-3500.0,0.00016986,2]
[395069831,1764397879787,-2500.0,0.00016986,2]
[395069832,1764397879796,-110949.34054979,0.00017,2]
[395069833,1764397879805,-368.72313193,0.00017046,14]
[395069834,1764397879815,-4000.0,0.00017108,2]
[395069835,1764397879824,-4000.0,0.00017108,2]
[395069836,1764397879834,-600.0,0.00017123,2]
[395069837,1764397879845,-260.4103811,0.00017124,2]
[395069838,1764397879854,-666.0,0.00017124,2]
[395069839,1764397879863,-500.0,0.0001726,2]
[395069840,1764397879872,-500.0,0.0001726,2]
[395069841,1764397879881,-500.0,0.0001726,2]
[395069842,1764397879890,-766.13,0.0001726,2]
[395069843,1764397879901,-556.64,0.0001726,2]
[395069844,1764397879910,-834.94,0.0001726,2]
[395069845,1764397879920,-500.0,0.0001726,2]
[395069846,1764397879930,-500.0,0.0001726,2]
[395069847,1764397879939,-823.76,0.0001726,2]
[395069848,1764397879948,-500.0,0.0001726,2]
[395069849,1764397879957,-598.61,0.0001726,2]
[395069850,1764397879966,-500.0,0.0001726,2]
[395069851,1764397879975,-903.4,0.0001726,2]
[395069852,1764397879984,-500.0,0.0001726,2]
[395069853,1764397879993,-500.0,0.0001726,2]
[395069854,1764397880003,-500.0,0.0001726,2]
[395069855,1764397880012,-629.28341548,0.0001726,2]
[395069856,1764397880021,-745.8,0.0001726,2]
[395069857,1764397880030,-500.0,0.0001726,2]
[395069858,1764397880039,-500.0,0.0001726,2]
[395069859,1764397880048,-500.0,0.0001726,2]
[395069860,1764397880057,-500.0,0.0001726,2]
[395069861,1764397880066,-587.4,0.0001726,2]
[395069862,1764397880075,-738.75,0.0001726,2]
[395069863,1764397880084,-500.0,0.0001726,2]
[395069864,1764397880093,-596.16,0.0001726,2]
[395069865,1764397880102,-524.15806059,0.0001726,2]
[395069866,1764397880112,-574.22,0.0001726,2]
[395069867,1764397880121,-581.68,0.0001726,2]
[395069868,1764397880130,-500.0,0.0001726,2]
[395069869,1764397880140,-500.0,0.0001726,2]
[395069870,1764397880149,-556.95,0.0001726,2]
[395069871,1764397880158,-564.08,0.0001726,2]
[395069872,1764397880167,-540.78,0.0001726,2]
[395069873,1764397880176,-500.0,0.0001726,2]
[395069874,1764397880185,-689.25,0.0001726,2]
[395069875,1764397880194,-355.05666995,0.0001726,2]
[395069876,1764397880203,-848.59,0.0001726,2]
[395069877,1764397880212,-1164.8,0.0001726,2]
[395069878,1764397880222,-1236.56,0.0001726,2]
[395069879,1764397880234,-500.0,0.0001726,2]
[395069880,1764397880244,-3090.35,0.0001726,2]
[395069881,1764397880254,-529.77,0.0001726,2]
[395069882,1764397880263,-5933.31,0.0001726,2]
[395069883,1764397880273,-1214.71,0.0001726,2]
[395069884,1764397880333,-500.0,0.0001726,2]
[395069885,1764397880343,-652.25,0.0001726,2]
[395069886,1764397880352,-1897.31,0.0001726,2]
[395069887,1764397880360,-990.53,0.0001726,2]
[395069888,1764397880370,-500.0,0.0001726,2]
[395069889,1764397880378,-778.35,0.0001726,2]
[395069890,1764397880387,-1618.79,0.0001726,2]
[395069891,1764397880397,-592.68,0.0001726,2]
[395069892,1764397880408,-899.31,0.0001726,2]
[395069893,1764397880418,-940.19,0.0001726,2]
[395069894,1764397880427,-500.0,0.0001726,2]
[395069895,1764397880436,-500.0,0.0001726,2]
[395069896,1764397880445,-1484.2,0.0001726,2]
[395069897,1764397880454,-500.0,0.0001726,2]
[395069898,1764397880464,-596.04,0.0001726,2]
[395069899,1764397880473,-2800.32,0.0001726,2]
[395069900,1764397880482,-602.32466175,0.0001726,2]
[395069901,1764397880491,-500.0,0.0001726,2]
[395069902,1764397880500,-500.0,0.0001726,2]
[395069903,1764397880509,-500.0,0.0001726,2]
[395069904,1764397880519,-552.21,0.0001726,2]
[395069905,1764397880528,-500.0,0.0001726,2]
[395069906,1764397880538,-1559.52,0.0001726,2]
[395069907,1764397880548,-522.61,0.0001726,2]
[395069908,1764397880557,-797.75,0.0001726,2]
[395069909,1764397880567,-513.48,0.0001726,2]
[395069910,1764397880576,-526.07,0.0001726,2]
[395069911,1764397880585,-500.0,0.0001726,2]
[395069912,1764397880594,-500.0,0.0001726,2]
[395069913,1764397880603,-1335.25,0.0001726,2]
[395069914,1764397880613,-1099.74,0.0001726,2]
[395069915,1764397880622,-3619.92,0.0001726,2]
[395069916,1764397880631,-500.0,0.0001726,2]
[395069917,1764397880641,-2405.03,0.0001726,2]
[395069918,1764397880650,-500.0,0.0001726,2]
[395069919,1764397880659,-7651.96,0.0001726,2]
[395069920,1764397880668,-297.19166702,0.0001726,2]
[395069921,1764397880678,-649.66,0.0001726,2]
[395069922,1764397880687,-1908.06,0.0001726,2]
[395069923,1764397880696,-500.0,0.0001726,2]
[395069924,1764397880705,-662.97,0.0001726,2]
[395069925,1764397880714,-1158.74,0.0001726,2]
[395069926,1764397880723,-621.96976279,0.0001726,2]
[395069927,1764397880732,-1514.35,0.0001726,2]
[395069928,1764397880742,-642.19,0.0001726,2]
[395069929,1764397880751,-500.0,0.0001726,2]
[395069930,1764397880760,-3678.73,0.0001726,2]
[395069931,1764397880769,-6008.98,0.0001726,2]
[395069932,1764397880778,-514.33,0.0001726,2]
[395069933,1764397880787,-776.58,0.0001726,2]
[395069934,1764397880796,-500.0,0.0001726,2]
[395069935,1764397880805,-3777.58,0.0001726,2]
[395069936,1764397880815,-980.94,0.0001726,2]
[395069937,1764397880824,-506.10936902,0.0001726,2]
[395069938,1764397880832,-500.0,0.0001726,2]
[395069939,1764397880841,-907.07,0.0001726,2]
[395069940,1764397880850,-500.0,0.0001726,2]
[395069941,1764397880859,-1083.76,0.0001726,2]
[395069942,1764397880868,-604.62,0.0001726,2]
[395069943,1764397880877,-500.0,0.0001726,2]
[395069944,1764397880886,-1104.96,0.0001726,2]
[395069945,1764397880895,-500.0,0.0001726,2]
[395069946,1764397880903,-6559.69,0.0001726,2]
[395069947,1764397880912,-939.05,0.0001726,2]
[395069948,1764397880922,-1377.4,0.0001726,2]
[395069949,1764397880931,-4642.22,0.0001726,2]
[395069950,1764397880939,-2400.0,0.0001726,2]
[395069951,1764397880948,-600.0,0.00017276,2]
[395069952,1764397880957,-660.0,0.00017292,2]
[395069953,1764397880967,-150.0,0.00017347,2]
[395069954,1764397880976,-306.0,0.00017367,2]
[395069955,1764397880985,-153.0,0.00017367,2]
[395069956,1764397880994,-153.0,0.00017367,2]
[395069957,1764397881003,-499.3,0.00017409,2]
[395069958,1764397881012,-330.0,0.00017453,2]
[395069959,1764397881020,-368.72313193,0.00017456,15]
[395069960,1764397881029,-2400.0,0.00017508,2]
[395069961,1764397881038,-500.0,0.00017534,2]
[395069962,1764397881046,-557.24108724,0.00017534,2]
[395069963,1764397881055,-500.0,0.00017534,2]
[395069964,1764397881064,-766.13,0.00017534,2]
[395069965,1764397881073,-556.64,0.00017534,2]
[395069966,1764397881082,-834.94,0.00017534,2]
[395069967,1764397881091,-500.0,0.00017534,2]
[395069968,1764397881100,-288.07398383,0.00017534,2]
[395069969,1764397881109,-823.76,0.00017534,2]
[395069970,1764397881119,-497.88113852,0.00017534,2]
[395069971,1764397881128,-598.61,0.00017534,2]
[395069972,1764397881137,-286.5566586,0.00017534,2]
[395069973,1764397881146,-903.4,0.00017534,2]
[395069974,1764397881155,-500.0,0.00017534,2]
[395069975,1764397881165,-500.0,0.00017534,2]
[395069976,1764397881174,-370.68327829,0.00017534,2]
[395069977,1764397881183,-745.8,0.00017534,2]
[395069978,1764397881191,-500.0,0.00017534,2]
[395069979,1764397881200,-500.0,0.00017534,2]
[395069980,1764397881209,-500.0,0.00017534,2]
[395069981,1764397881219,-500.0,0.00017534,2]
[395069982,1764397881228,-587.4,0.00017534,2]
[395069983,1764397881240,-738.75,0.00017534,2]
[395069984,1764397881249,-500.0,0.00017534,2]
[395069985,1764397881258,-596.16,0.00017534,2]